[Event "Late-Titled-Tuesday-Blitz-April-23-2024"]
[Site "Chess.com"]
[Date "2024.04.23"]
[Round "6"]
[White "Akhayan"]
[Black "karinachess1"]
[Result "0-1"]
[WhiteElo "2413"]
[BlackElo "2600"]
[TimeControl "180+1"]
[EndTime "15:09:41 PDT"]
[Termination "karinachess1 won by resignation"]

1. e4 {[%clk 0:03:00.9]} 1... e5 {[%clk 0:03:00.1]} 2. Bc4 {[%clk 0:03:00.2]}
2... Nf6 {[%clk 0:02:59.9]} 3. d3 {[%clk 0:03:00.8]} 3... Be7 {[%clk 0:03:00]}
4. Nc3 {[%clk 0:03:01.2]} 4... O-O {[%clk 0:02:59.8]} 5. f4 {[%clk 0:03:01.9]}
5... exf4 {[%clk 0:02:55]} 6. Bxf4 {[%clk 0:03:01]} 6... c6 {[%clk 0:02:55.7]}
7. Nf3 {[%clk 0:02:59.2]} 7... d5 {[%clk 0:02:56]} 8. exd5 {[%clk 0:02:59.5]}
8... cxd5 {[%clk 0:02:56.9]} 9. Bb3 {[%clk 0:02:59.8]} 9... d4 {[%clk 0:02:54]}
10. Ne2 {[%clk 0:02:54]} 10... Bb4+ {[%clk 0:02:46.3]} 11. c3 {[%clk 0:02:50.1]}
11... dxc3 {[%clk 0:02:42.1]} 12. bxc3 {[%clk 0:02:50.7]} 12... Bd6 {[%clk
0:02:40.6]} 13. O-O {[%clk 0:02:40.7]} 13... Bxf4 {[%clk 0:02:33]} 14. Nxf4
{[%clk 0:02:40.4]} 14... Qc7 {[%clk 0:02:33.6]} 15. Qd2 {[%clk 0:02:31.8]} 15...
Nc6 {[%clk 0:02:29.7]} 16. Kh1 {[%clk 0:02:26.4]} 16... Na5 {[%clk 0:02:21.6]}
17. Rae1 {[%clk 0:02:15.8]} 17... Nxb3 {[%clk 0:02:21.2]} 18. axb3 {[%clk
0:02:15.9]} 18... Bf5 {[%clk 0:02:18.4]} 19. Nd4 {[%clk 0:02:10.2]} 19... Bg4
{[%clk 0:02:18.7]} 20. h3 {[%clk 0:02:07.6]} 20... Bd7 {[%clk 0:02:18.8]} 21. c4
{[%clk 0:01:30.8]} 21... Rad8 {[%clk 0:02:15.3]} 22. Nf3 {[%clk 0:01:21]} 22...
Bf5 {[%clk 0:02:12.1]} 23. Ne5 {[%clk 0:01:16.1]} 23... Rfe8 {[%clk 0:02:00.8]}
24. d4 {[%clk 0:01:06.8]} 24... Ne4 {[%clk 0:01:38.7]} 25. Qe3 {[%clk
0:01:02.2]} 25... f6 {[%clk 0:01:35.6]} 26. Ned3 {[%clk 0:00:58]} 26... Nd6
{[%clk 0:01:16.7]} 27. Qf3 {[%clk 0:00:50.5]} 27... Be4 {[%clk 0:01:11.7]} 28.
Qg4 {[%clk 0:00:42.7]} 28... Qf7 {[%clk 0:01:09.8]} 29. Nc5 {[%clk 0:00:40.4]}
29... Bf5 {[%clk 0:01:05.8]} 30. Qf3 {[%clk 0:00:37.5]} 30... b6 {[%clk
0:01:02.6]} 31. Ncd3 {[%clk 0:00:36.6]} 31... Be4 {[%clk 0:00:51.7]} 32. Qg4
{[%clk 0:00:35]} 32... Bf5 {[%clk 0:00:39.2]} 33. Qf3 {[%clk 0:00:35.2]} 33...
Rxe1 {[%clk 0:00:38.5]} 34. Rxe1 {[%clk 0:00:35]} 34... h6 {[%clk 0:00:34.6]}
35. d5 {[%clk 0:00:35]} 35... Re8 {[%clk 0:00:32.6]} 36. Kh2 {[%clk 0:00:27.6]}
36... Rxe1 {[%clk 0:00:26.7]} 37. Nxe1 {[%clk 0:00:27.8]} 37... Qc7 {[%clk
0:00:27.3]} 38. Kh1 {[%clk 0:00:27]} 38... Be4 {[%clk 0:00:26.3]} 39. Qe2 {[%clk
0:00:25.1]} 39... f5 {[%clk 0:00:18.4]} 40. Ne6 {[%clk 0:00:25]} 40... Qf7
{[%clk 0:00:18.6]} 41. Nd3 {[%clk 0:00:23.3]} 41... Qf6 {[%clk 0:00:17.9]} 42.
Qe3 {[%clk 0:00:21.4]} 42... Nf7 {[%clk 0:00:13.7]} 43. Nf2 {[%clk 0:00:20.5]}
43... Nd6 {[%clk 0:00:10.9]} 44. Qg3 {[%clk 0:00:18.4]} 44... Nf7 {[%clk
0:00:08.5]} 45. Qb8+ {[%clk 0:00:17.6]} 45... Kh7 {[%clk 0:00:05.7]} 46. Nf8+
{[%clk 0:00:17.6]} 46... Kg8 {[%clk 0:00:06.3]} 47. Nd7+ {[%clk 0:00:15.9]}
47... Qd8 {[%clk 0:00:06.7]} 48. Qxd8+ {[%clk 0:00:13.4]} 48... Nxd8 {[%clk
0:00:07.6]} 49. Kg1 {[%clk 0:00:12]} 49... Bc2 {[%clk 0:00:07.3]} 50. b4 {[%clk
0:00:11.1]} 50... Bb3 {[%clk 0:00:06.7]} 51. Ne5 {[%clk 0:00:11.6]} 51... a5
{[%clk 0:00:06.9]} 52. bxa5 {[%clk 0:00:11.1]} 52... bxa5 {[%clk 0:00:07.8]} 53.
Nfd3 {[%clk 0:00:11.6]} 53... a4 {[%clk 0:00:08]} 54. Nc5 {[%clk 0:00:11.8]}
54... Kf8 {[%clk 0:00:06.5]} 55. Kf2 {[%clk 0:00:11.5]} 55... Ke7 {[%clk
0:00:07]} 56. Ke3 {[%clk 0:00:12]} 56... Kd6 {[%clk 0:00:07.5]} 57. Kd4 {[%clk
0:00:12.8]} 57... Bd1 {[%clk 0:00:07.1]} 58. Ned3 {[%clk 0:00:11.8]} 58... a3
{[%clk 0:00:06.7]} 59. Nb4 {[%clk 0:00:12.2]} 59... Nf7 {[%clk 0:00:04.5]} 60.
Ncd3 {[%clk 0:00:11.2]} 60... Bb3 {[%clk 0:00:03.9]} 61. c5+ {[%clk 0:00:11.6]}
61... Kc7 {[%clk 0:00:03.5]} 62. Nc1 {[%clk 0:00:11.7]} 62... Ba4 {[%clk
0:00:02.7]} 63. c6 {[%clk 0:00:10.4]} 63... Nd6 {[%clk 0:00:02.3]} 64. Na6+
{[%clk 0:00:09]} 64... Kb6 {[%clk 0:00:02.5]} 65. Nc5 {[%clk 0:00:07.1]} 65...
Nb5+ {[%clk 0:00:02.7]} 66. Ke5 {[%clk 0:00:05.5]} 66... Kxc5 {[%clk 0:00:02.8]}
67. c7 {[%clk 0:00:05.9]} 67... Nxc7 {[%clk 0:00:02.9]} 68. d6 {[%clk
0:00:06.4]} 68... Ne8 {[%clk 0:00:03.1]} 69. Ke6 {[%clk 0:00:05]} 69... Nxd6
{[%clk 0:00:02.9]} 70. Ke7 {[%clk 0:00:05.3]} 70... Nc4 {[%clk 0:00:02.8]} 71.
Ke6 {[%clk 0:00:05.1]} 71... Kb4 {[%clk 0:00:03.3]} 0-1

[Event "Late-Titled-Tuesday-Blitz-April-23-2024"]
[Site "Chess.com"]
[Date "2024.04.23"]
[Round "6"]
[White "GelmanAlexander"]
[Black "Der_Balak_3Halak"]
[Result "1-0"]
[WhiteElo "2632"]
[BlackElo "2445"]
[TimeControl "180+1"]
[EndTime "15:09:42 PDT"]
[Termination "GelmanAlexander won by checkmate"]

1. d4 {[%clk 0:03:00.9]} 1... d5 {[%clk 0:03:00.1]} 2. Nc3 {[%clk 0:03:01.2]}
2... Nf6 {[%clk 0:02:56.8]} 3. Bf4 {[%clk 0:03:01.5]} 3... e6 {[%clk 0:02:57.3]}
4. Nb5 {[%clk 0:03:01.6]} 4... Na6 {[%clk 0:02:56.6]} 5. e3 {[%clk 0:03:02.1]}
5... c6 {[%clk 0:02:56.8]} 6. Nc3 {[%clk 0:03:02.2]} 6... Bd6 {[%clk 0:02:57.4]}
7. g4 {[%clk 0:03:01]} 7... Bxf4 {[%clk 0:02:56.4]} 8. exf4 {[%clk 0:03:01.1]}
8... Qd6 {[%clk 0:02:55]} 9. g5 {[%clk 0:02:52.5]} 9... Ne4 {[%clk 0:02:49.6]}
10. Nxe4 {[%clk 0:02:51.6]} 10... dxe4 {[%clk 0:02:50.5]} 11. Bxa6 {[%clk
0:02:33.4]} 11... bxa6 {[%clk 0:02:48.3]} 12. Ne2 {[%clk 0:02:33.3]} 12... Rb8
{[%clk 0:02:44.3]} 13. b3 {[%clk 0:02:29.4]} 13... Bb7 {[%clk 0:02:35.4]} 14.
Qd2 {[%clk 0:02:29.3]} 14... c5 {[%clk 0:02:30.7]} 15. dxc5 {[%clk 0:02:17.7]}
15... Qxc5 {[%clk 0:02:21.9]} 16. O-O-O {[%clk 0:02:09.3]} 16... O-O {[%clk
0:02:17.5]} 17. Qd4 {[%clk 0:02:00.1]} 17... Qa3+ {[%clk 0:02:04.8]} 18. Qb2
{[%clk 0:01:59.6]} 18... Qxb2+ {[%clk 0:01:56.6]} 19. Kxb2 {[%clk 0:01:59.7]}
19... e3 {[%clk 0:01:57.5]} 20. Rhe1 {[%clk 0:01:29.1]} 20... exf2 {[%clk
0:01:45.4]} 21. Rf1 {[%clk 0:01:29.2]} 21... a5 {[%clk 0:01:26.5]} 22. Rxf2
{[%clk 0:01:20.5]} 22... a4 {[%clk 0:01:25.6]} 23. Rd7 {[%clk 0:01:16.8]} 23...
axb3 {[%clk 0:01:23.8]} 24. axb3 {[%clk 0:01:16.7]} 24... Rfd8 {[%clk
0:01:21.5]} 25. Rc7 {[%clk 0:01:13]} 25... Rd2 {[%clk 0:01:18.4]} 26. Kc3 {[%clk
0:01:07.2]} 26... Rd5 {[%clk 0:01:10.8]} 27. Nd4 {[%clk 0:01:01.1]} 27... Rc8
{[%clk 0:01:09.7]} 28. Rxc8+ {[%clk 0:01:00.6]} 28... Bxc8 {[%clk 0:01:10.6]}
29. Re2 {[%clk 0:00:54.8]} 29... Kf8 {[%clk 0:00:57]} 30. Re5 {[%clk 0:00:54.6]}
30... Rxe5 {[%clk 0:00:44.8]} 31. fxe5 {[%clk 0:00:54.9]} 31... Bd7 {[%clk
0:00:45.7]} 32. Kb4 {[%clk 0:00:53.3]} 32... Ke7 {[%clk 0:00:44]} 33. c4 {[%clk
0:00:35.8]} 33... f6 {[%clk 0:00:43.4]} 34. gxf6+ {[%clk 0:00:33.4]} 34... gxf6
{[%clk 0:00:44.3]} 35. exf6+ {[%clk 0:00:24.9]} 35... Kxf6 {[%clk 0:00:45.2]}
36. Kc5 {[%clk 0:00:23.8]} 36... e5 {[%clk 0:00:42.5]} 37. Nc2 {[%clk
0:00:23.9]} 37... Kg5 {[%clk 0:00:23.3]} 38. Kd6 {[%clk 0:00:23.9]} 38... Bf5
{[%clk 0:00:20.9]} 39. Ne3 {[%clk 0:00:20.8]} 39... e4 {[%clk 0:00:20.1]} 40.
Ke5 {[%clk 0:00:18.8]} 40... Bg6 {[%clk 0:00:17.3]} 41. c5 {[%clk 0:00:19.2]}
41... Be8 {[%clk 0:00:13.8]} 42. Kxe4 {[%clk 0:00:16.7]} 42... Bc6+ {[%clk
0:00:14.5]} 43. Ke5 {[%clk 0:00:16.6]} 43... a5 {[%clk 0:00:13.2]} 44. Nc4
{[%clk 0:00:14.4]} 44... a4 {[%clk 0:00:12.7]} 45. bxa4 {[%clk 0:00:13.8]} 45...
Bxa4 {[%clk 0:00:12.8]} 46. Ne3 {[%clk 0:00:11.6]} 46... Kh4 {[%clk 0:00:11.8]}
47. Kf4 {[%clk 0:00:11.3]} 47... Kh3 {[%clk 0:00:11.9]} 48. Ng4 {[%clk
0:00:06.7]} 48... h5 {[%clk 0:00:11.2]} 49. Nf6 {[%clk 0:00:07.1]} 49... h4
{[%clk 0:00:10.9]} 50. Kg5 {[%clk 0:00:07.7]} 50... Bc6 {[%clk 0:00:08.8]} 51.
Ng4 {[%clk 0:00:05.9]} 51... Bd7 {[%clk 0:00:07.8]} 52. Ne5 {[%clk 0:00:05.3]}
52... Bb5 {[%clk 0:00:05.5]} 53. Ng6 {[%clk 0:00:05.3]} 53... Kxh2 {[%clk
0:00:04.9]} 54. Kxh4 {[%clk 0:00:05]} 54... Kg2 {[%clk 0:00:04.8]} 55. Kg4
{[%clk 0:00:05.7]} 55... Kf2 {[%clk 0:00:05.1]} 56. Kf4 {[%clk 0:00:06.3]} 56...
Ke2 {[%clk 0:00:05.5]} 57. Ke4 {[%clk 0:00:06.8]} 57... Bc6+ {[%clk 0:00:05.5]}
58. Ke5 {[%clk 0:00:07]} 58... Kd3 {[%clk 0:00:05.6]} 59. Kd6 {[%clk 0:00:07.8]}
59... Be8 {[%clk 0:00:05.7]} 60. Ne5+ {[%clk 0:00:08.3]} 60... Kd4 {[%clk
0:00:05.5]} 61. Ng4 {[%clk 0:00:07]} 61... Kc4 {[%clk 0:00:05.4]} 62. Nf6 {[%clk
0:00:06.3]} 62... Ba4 {[%clk 0:00:04.6]} 63. Nd5 {[%clk 0:00:06.9]} 63... Bb3
{[%clk 0:00:01.6]} 64. Nb6+ {[%clk 0:00:07.8]} 64... Kb5 {[%clk 0:00:01.8]} 65.
Nd7 {[%clk 0:00:06.9]} 65... Ka6 {[%clk 0:00:01.4]} 66. c6 {[%clk 0:00:06.8]}
66... Ba4 {[%clk 0:00:01.1]} 67. c7 {[%clk 0:00:06.9]} 67... Kb7 {[%clk
0:00:02]} 68. Nb6 {[%clk 0:00:06.2]} 68... Bd7 {[%clk 0:00:01.5]} 69. Nxd7
{[%clk 0:00:06.1]} 69... Kc8 {[%clk 0:00:01.7]} 70. Nb6+ {[%clk 0:00:06.4]}
70... Kb7 {[%clk 0:00:02.1]} 71. c8=Q+ {[%clk 0:00:07.3]} 71... Ka7 {[%clk
0:00:02.5]} 72. Qc7+ {[%clk 0:00:06.8]} 72... Ka6 {[%clk 0:00:02.6]} 73. Nd7
{[%clk 0:00:05.8]} 73... Kb5 {[%clk 0:00:03]} 74. Qc5+ {[%clk 0:00:06.1]} 74...
Ka6 {[%clk 0:00:03.1]} 75. Qb6# {[%clk 0:00:06.4]} 1-0

[Event "Late-Titled-Tuesday-Blitz-April-23-2024"]
[Site "Chess.com"]
[Date "2024.04.23"]
[Round "6"]
[White "ricaurtelopezj1955"]
[Black "Flaccidmoves"]
[Result "1-0"]
[WhiteElo "2176"]
[BlackElo "2404"]
[TimeControl "180+1"]
[EndTime "15:09:46 PDT"]
[Termination "ricaurtelopezj1955 won by checkmate"]

1. e4 {[%clk 0:03:00.9]} 1... c6 {[%clk 0:02:57.6]} 2. d4 {[%clk 0:02:59.5]}
2... d5 {[%clk 0:02:57.9]} 3. exd5 {[%clk 0:02:59.4]} 3... cxd5 {[%clk 0:02:58]}
4. c4 {[%clk 0:02:58.9]} 4... Nf6 {[%clk 0:02:57.8]} 5. Nc3 {[%clk 0:02:58.5]}
5... Nc6 {[%clk 0:02:57.7]} 6. Bg5 {[%clk 0:02:56.4]} 6... dxc4 {[%clk
0:02:42.9]} 7. d5 {[%clk 0:02:51.1]} 7... Ne5 {[%clk 0:02:42]} 8. Qd4 {[%clk
0:02:51.5]} 8... Nd3+ {[%clk 0:02:33.3]} 9. Bxd3 {[%clk 0:02:50.7]} 9... cxd3
{[%clk 0:02:34.2]} 10. Nf3 {[%clk 0:02:49.9]} 10... g6 {[%clk 0:02:29.6]} 11.
Bxf6 {[%clk 0:02:38.1]} 11... exf6 {[%clk 0:02:29.3]} 12. O-O {[%clk 0:02:37.8]}
12... Be7 {[%clk 0:02:29.2]} 13. Qxd3 {[%clk 0:02:33.4]} 13... O-O {[%clk
0:02:28.6]} 14. Rfe1 {[%clk 0:02:32.5]} 14... f5 {[%clk 0:02:02.7]} 15. Rad1
{[%clk 0:02:27]} 15... Bd6 {[%clk 0:01:59.7]} 16. h4 {[%clk 0:02:17.4]} 16... a6
{[%clk 0:01:56.1]} 17. h5 {[%clk 0:02:16.5]} 17... Bd7 {[%clk 0:01:50.6]} 18.
Qd4 {[%clk 0:02:10.4]} 18... gxh5 {[%clk 0:01:40.7]} 19. Ne5 {[%clk 0:02:04]}
19... Be8 {[%clk 0:01:33.3]} 20. Rd3 {[%clk 0:01:59.5]} 20... f6 {[%clk
0:01:27.4]} 21. Nc4 {[%clk 0:01:51]} 21... Bf7 {[%clk 0:01:13.9]} 22. Ree3
{[%clk 0:01:37.9]} 22... Rc8 {[%clk 0:01:04.5]} 23. Nxd6 {[%clk 0:01:15]} 23...
Qxd6 {[%clk 0:01:05.4]} 24. Rg3+ {[%clk 0:01:11.8]} 24... Kh8 {[%clk 0:00:55]}
25. Rge3 {[%clk 0:00:58.8]} 25... Rce8 {[%clk 0:00:48]} 26. Rd2 {[%clk 0:00:56]}
26... Rxe3 {[%clk 0:00:45.7]} 27. Qxe3 {[%clk 0:00:54.2]} 27... Re8 {[%clk
0:00:43.8]} 28. Qg3 {[%clk 0:00:39.8]} 28... f4 {[%clk 0:00:21]} 29. Qf3 {[%clk
0:00:37.8]} 29... Re1+ {[%clk 0:00:18.5]} 30. Kh2 {[%clk 0:00:36.7]} 30... f5
{[%clk 0:00:18.5]} 31. Rd4 {[%clk 0:00:36.1]} 31... Qe5 {[%clk 0:00:12.7]} 32.
Qxf4 {[%clk 0:00:35.2]} 32... Qxf4+ {[%clk 0:00:08.5]} 33. Rxf4 {[%clk
0:00:34.2]} 33... Re5 {[%clk 0:00:06.2]} 34. Rd4 {[%clk 0:00:33]} 34... Be8
{[%clk 0:00:06.7]} 35. d6 {[%clk 0:00:31.6]} 35... Bd7 {[%clk 0:00:06.9]} 36.
Kg3 {[%clk 0:00:31.7]} 36... Kg7 {[%clk 0:00:06.1]} 37. Kf4 {[%clk 0:00:32.1]}
37... Kf6 {[%clk 0:00:06.2]} 38. Nd5+ {[%clk 0:00:30.3]} 38... Ke6 {[%clk
0:00:06.4]} 39. Ne3 {[%clk 0:00:30.1]} 39... Re4+ {[%clk 0:00:06.2]} 40. Rxe4+
{[%clk 0:00:28.6]} 40... fxe4 {[%clk 0:00:07.1]} 41. Kxe4 {[%clk 0:00:28.3]}
41... Kxd6 {[%clk 0:00:07.7]} 42. f4 {[%clk 0:00:19.5]} 42... Ke7 {[%clk
0:00:06.2]} 43. Ke5 {[%clk 0:00:18.4]} 43... Kf7 {[%clk 0:00:03.7]} 44. g3
{[%clk 0:00:18.2]} 44... b5 {[%clk 0:00:03.5]} 45. f5 {[%clk 0:00:16.8]} 45...
a5 {[%clk 0:00:03.7]} 46. Nd5 {[%clk 0:00:15.5]} 46... Bc6 {[%clk 0:00:02.5]}
47. Nf4 {[%clk 0:00:14.5]} 47... h4 {[%clk 0:00:02.4]} 48. gxh4 {[%clk
0:00:13.3]} 48... b4 {[%clk 0:00:02.9]} 49. h5 {[%clk 0:00:12.9]} 49... a4
{[%clk 0:00:03.2]} 50. a3 {[%clk 0:00:12.5]} 50... bxa3 {[%clk 0:00:02.9]} 51.
bxa3 {[%clk 0:00:12.4]} 51... Bd7 {[%clk 0:00:03.3]} 52. Ne6 {[%clk 0:00:10.7]}
52... Bb5 {[%clk 0:00:02.4]} 53. Ng5+ {[%clk 0:00:09.9]} 53... Kg7 {[%clk
0:00:01.7]} 54. f6+ {[%clk 0:00:08.9]} 54... Kg8 {[%clk 0:00:02]} 55. Ke6 {[%clk
0:00:07.3]} 55... Bc4+ {[%clk 0:00:02]} 56. Ke7 {[%clk 0:00:07]} 56... h6 {[%clk
0:00:02.7]} 57. f7+ {[%clk 0:00:06.7]} 57... Bxf7 {[%clk 0:00:02.9]} 58. Nxf7
{[%clk 0:00:06.9]} 58... Kh7 {[%clk 0:00:03.8]} 59. Kf6 {[%clk 0:00:05.6]} 59...
Kg8 {[%clk 0:00:03.7]} 60. Kg6 {[%clk 0:00:05.2]} 60... Kf8 {[%clk 0:00:04.5]}
61. Nxh6 {[%clk 0:00:04.9]} 61... Ke7 {[%clk 0:00:04.4]} 62. Nf5+ {[%clk
0:00:05.6]} 62... Kf8 {[%clk 0:00:04.4]} 63. Nd4 {[%clk 0:00:06.3]} 63... Kg8
{[%clk 0:00:05.3]} 64. Nc6 {[%clk 0:00:06.3]} 64... Kh8 {[%clk 0:00:06.2]} 65.
Na5 {[%clk 0:00:06.3]} 65... Kg8 {[%clk 0:00:07.1]} 66. Nc4 {[%clk 0:00:05.8]}
66... Kf8 {[%clk 0:00:08]} 67. Nb2 {[%clk 0:00:05.8]} 67... Kg8 {[%clk
0:00:08.9]} 68. Nxa4 {[%clk 0:00:05.9]} 68... Kh8 {[%clk 0:00:09.8]} 69. Nc5
{[%clk 0:00:06]} 69... Kg8 {[%clk 0:00:10.7]} 70. a4 {[%clk 0:00:05.9]} 70...
Kf8 {[%clk 0:00:11.6]} 71. a5 {[%clk 0:00:06.4]} 71... Kg8 {[%clk 0:00:12.5]}
72. a6 {[%clk 0:00:06.7]} 72... Kf8 {[%clk 0:00:13.4]} 73. a7 {[%clk 0:00:07]}
73... Ke7 {[%clk 0:00:14.3]} 74. a8=Q {[%clk 0:00:06]} 74... Kd6 {[%clk
0:00:15.2]} 75. Qc8 {[%clk 0:00:05.6]} 75... Ke5 {[%clk 0:00:15.2]} 76. h6
{[%clk 0:00:05.5]} 76... Kf4 {[%clk 0:00:16.1]} 77. h7 {[%clk 0:00:05.6]} 77...
Kg3 {[%clk 0:00:16.6]} 78. h8=Q {[%clk 0:00:05.4]} 78... Kg2 {[%clk 0:00:17.5]}
79. Qc3 {[%clk 0:00:05.1]} 79... Kg1 {[%clk 0:00:18.4]} 80. Qa6 {[%clk
0:00:04.7]} 80... Kf2 {[%clk 0:00:18.1]} 81. Qa2+ {[%clk 0:00:04.9]} 81... Kf1
{[%clk 0:00:18.1]} 82. Qc1# {[%clk 0:00:05.3]} 1-0

[Event "Late-Titled-Tuesday-Blitz-April-23-2024"]
[Site "Chess.com"]
[Date "2024.04.23"]
[Round "6"]
[White "Denmark2015"]
[Black "Jahonas"]
[Result "1/2-1/2"]
[WhiteElo "2612"]
[BlackElo "2403"]
[TimeControl "180+1"]
[EndTime "15:10:02 PDT"]
[Termination "Game drawn - insufficient material"]

1. d4 {[%clk 0:03:00.9]} 1... Nf6 {[%clk 0:02:58.8]} 2. c4 {[%clk 0:03:00.7]}
2... e6 {[%clk 0:02:58.9]} 3. Nc3 {[%clk 0:03:00.6]} 3... d5 {[%clk 0:02:59.2]}
4. Bg5 {[%clk 0:02:59.8]} 4... Be7 {[%clk 0:02:59.4]} 5. e3 {[%clk 0:02:58.1]}
5... c6 {[%clk 0:02:59.3]} 6. Nf3 {[%clk 0:02:52.5]} 6... Nbd7 {[%clk
0:02:59.5]} 7. Bd3 {[%clk 0:02:46.7]} 7... h6 {[%clk 0:02:59]} 8. Bh4 {[%clk
0:02:42.2]} 8... a6 {[%clk 0:02:58.3]} 9. O-O {[%clk 0:02:40.4]} 9... b5 {[%clk
0:02:53.9]} 10. cxd5 {[%clk 0:02:39.5]} 10... cxd5 {[%clk 0:02:53.3]} 11. h3
{[%clk 0:02:29.7]} 11... Bb7 {[%clk 0:02:53]} 12. Rc1 {[%clk 0:02:29.1]} 12...
O-O {[%clk 0:02:51.7]} 13. Bb1 {[%clk 0:02:26.5]} 13... Re8 {[%clk 0:02:50.1]}
14. Bg3 {[%clk 0:02:19.5]} 14... Rc8 {[%clk 0:02:48.7]} 15. a3 {[%clk
0:02:14.1]} 15... Ne4 {[%clk 0:02:34]} 16. Nxe4 {[%clk 0:01:59.4]} 16... dxe4
{[%clk 0:02:33.6]} 17. Nd2 {[%clk 0:01:52.3]} 17... f5 {[%clk 0:02:15.4]} 18.
Ba2 {[%clk 0:01:21.1]} 18... Bg5 {[%clk 0:02:02.4]} 19. Qe2 {[%clk 0:01:12.7]}
19... Nb6 {[%clk 0:01:57.5]} 20. Be5 {[%clk 0:01:00.3]} 20... Bd5 {[%clk
0:01:52.6]} 21. Bxd5 {[%clk 0:00:57.6]} 21... Qxd5 {[%clk 0:01:40.9]} 22. f3
{[%clk 0:00:40.3]} 22... exf3 {[%clk 0:01:21.4]} 23. Nxf3 {[%clk 0:00:39.3]}
23... Be7 {[%clk 0:01:18.3]} 24. Nd2 {[%clk 0:00:35.8]} 24... Nc4 {[%clk
0:01:08.1]} 25. Nxc4 {[%clk 0:00:34.5]} 25... Rxc4 {[%clk 0:01:07.3]} 26. Rxc4
{[%clk 0:00:34.1]} 26... bxc4 {[%clk 0:01:06.7]} 27. Rc1 {[%clk 0:00:33.2]}
27... Rc8 {[%clk 0:01:05.6]} 28. Qc2 {[%clk 0:00:26.3]} 28... Bg5 {[%clk
0:00:52.3]} 29. Qc3 {[%clk 0:00:26.5]} 29... Qe4 {[%clk 0:00:51]} 30. Kf2 {[%clk
0:00:24.6]} 30... f4 {[%clk 0:00:50.3]} 31. exf4 {[%clk 0:00:21.4]} 31... Bxf4
{[%clk 0:00:49.2]} 32. Bxf4 {[%clk 0:00:22]} 32... Qxf4+ {[%clk 0:00:48.9]} 33.
Kg1 {[%clk 0:00:22.7]} 33... Rd8 {[%clk 0:00:24.5]} 34. Qxc4 {[%clk 0:00:21.8]}
34... Qxd4+ {[%clk 0:00:24.7]} 35. Qxd4 {[%clk 0:00:22.1]} 35... Rxd4 {[%clk
0:00:25.5]} 36. Rc6 {[%clk 0:00:22.3]} 36... Rd1+ {[%clk 0:00:23.7]} 37. Kh2
{[%clk 0:00:22.2]} 37... Rd2 {[%clk 0:00:23.3]} 38. b4 {[%clk 0:00:22.4]} 38...
e5 {[%clk 0:00:22.2]} 39. Rxa6 {[%clk 0:00:22.3]} 39... Rd3 {[%clk 0:00:21.2]}
40. b5 {[%clk 0:00:19.6]} 40... Rb3 {[%clk 0:00:21.2]} 41. a4 {[%clk 0:00:19.3]}
41... e4 {[%clk 0:00:21.6]} 42. Re6 {[%clk 0:00:18.3]} 42... Rb4 {[%clk
0:00:21.9]} 43. b6 {[%clk 0:00:18]} 43... Kf7 {[%clk 0:00:21.2]} 44. Rc6 {[%clk
0:00:10.6]} 44... Rxa4 {[%clk 0:00:20.3]} 45. Kg3 {[%clk 0:00:09.9]} 45... Rb4
{[%clk 0:00:20.4]} 46. Kf4 {[%clk 0:00:09.9]} 46... g5+ {[%clk 0:00:19.7]} 47.
Ke3 {[%clk 0:00:09.9]} 47... Kg7 {[%clk 0:00:16]} 48. g4 {[%clk 0:00:09.9]}
48... Kh7 {[%clk 0:00:13.4]} 49. Rc7+ {[%clk 0:00:10.4]} 49... Kg6 {[%clk
0:00:13.2]} 50. b7 {[%clk 0:00:11.1]} 50... Kf6 {[%clk 0:00:12.2]} 51. Rh7
{[%clk 0:00:10.4]} 51... Kg6 {[%clk 0:00:12.1]} 52. Rd7 {[%clk 0:00:11.1]} 52...
Kf6 {[%clk 0:00:12.2]} 53. Rc7 {[%clk 0:00:11.2]} 53... Kg6 {[%clk 0:00:12.4]}
54. Rc6+ {[%clk 0:00:11.3]} 54... Kg7 {[%clk 0:00:12.5]} 55. Rc7+ {[%clk
0:00:10.9]} 55... Kg6 {[%clk 0:00:12.7]} 56. Kd2 {[%clk 0:00:11.4]} 56... Kf6
{[%clk 0:00:10.6]} 57. Kc3 {[%clk 0:00:11.3]} 57... Rb1 {[%clk 0:00:10.8]} 58.
Kc2 {[%clk 0:00:09.4]} 58... Rb5 {[%clk 0:00:10]} 59. Kd2 {[%clk 0:00:09.6]}
59... Rb3 {[%clk 0:00:09.3]} 60. Ke2 {[%clk 0:00:09.3]} 60... Kg6 {[%clk
0:00:09.1]} 61. Kf2 {[%clk 0:00:08.2]} 61... Kf6 {[%clk 0:00:08.9]} 62. Rh7
{[%clk 0:00:07.4]} 62... Kg6 {[%clk 0:00:08.6]} 63. Re7 {[%clk 0:00:07]} 63...
Kf6 {[%clk 0:00:08.8]} 64. Rxe4 {[%clk 0:00:06.5]} 64... Rxb7 {[%clk 0:00:08.8]}
65. Rc4 {[%clk 0:00:06.4]} 65... Kg6 {[%clk 0:00:08.9]} 66. Rc6+ {[%clk
0:00:06.2]} 66... Kg7 {[%clk 0:00:08.9]} 67. Rc3 {[%clk 0:00:06.8]} 67... Rf7+
{[%clk 0:00:08.7]} 68. Kg3 {[%clk 0:00:07.3]} 68... Rb7 {[%clk 0:00:08.4]} 69.
h4 {[%clk 0:00:07.7]} 69... gxh4+ {[%clk 0:00:08.2]} 70. Kxh4 {[%clk 0:00:08.6]}
70... Rb5 {[%clk 0:00:08.5]} 71. Rc7+ {[%clk 0:00:08.6]} 71... Kg6 {[%clk
0:00:08.9]} 72. Rc4 {[%clk 0:00:08.7]} 72... Kg7 {[%clk 0:00:08.6]} 73. Rc6
{[%clk 0:00:08.9]} 73... Ra5 {[%clk 0:00:07.9]} 74. Rd6 {[%clk 0:00:09.2]} 74...
Rb5 {[%clk 0:00:08]} 75. Ra6 {[%clk 0:00:08.5]} 75... Rc5 {[%clk 0:00:08.1]} 76.
Ra7+ {[%clk 0:00:08.8]} 76... Kg6 {[%clk 0:00:08.2]} 77. Ra8 {[%clk 0:00:09.4]}
77... Rc4 {[%clk 0:00:08.1]} 78. Rg8+ {[%clk 0:00:09]} 78... Kh7 {[%clk
0:00:07.9]} 79. Re8 {[%clk 0:00:08.2]} 79... Kg6 {[%clk 0:00:08.2]} 80. Re7
{[%clk 0:00:08.4]} 80... h5 {[%clk 0:00:06.4]} 81. Re6+ {[%clk 0:00:06.1]} 81...
Kf7 {[%clk 0:00:06.6]} 82. Rh6 {[%clk 0:00:05.4]} 82... hxg4 {[%clk 0:00:06.6]}
83. Kg3 {[%clk 0:00:05.5]} 83... Kg7 {[%clk 0:00:06.7]} 84. Ra6 {[%clk
0:00:05.1]} 84... Kf7 {[%clk 0:00:06.8]} 85. Rb6 {[%clk 0:00:05.5]} 85... Kg7
{[%clk 0:00:06.9]} 86. Ra6 {[%clk 0:00:05.8]} 86... Kf7 {[%clk 0:00:07.3]} 87.
Rb6 {[%clk 0:00:06.2]} 87... Ke7 {[%clk 0:00:07.8]} 88. Ra6 {[%clk 0:00:06.6]}
88... Kd7 {[%clk 0:00:08.2]} 89. Rg6 {[%clk 0:00:06.7]} 89... Kc7 {[%clk
0:00:08.2]} 90. Rxg4 {[%clk 0:00:07.1]} 90... Rxg4+ {[%clk 0:00:08.1]} 91. Kxg4
{[%clk 0:00:08]} 1/2-1/2